[Event "Najdorf Memorial-B 2022"]
[Site "Warsaw"]
[Date "2022.07.15"]
[Round "7.17"]
[White "Przybyla, Andrzej"]
[Black "Iwaszkiewicz, Krzysztof"]
[Result "0-1"]
[ECO "D45"]
[WhiteElo "1418"]
[BlackElo "1630"]
[Annotator "NA"]
[PlyCount "80"]
[EventDate "2022.07.09"]
[EventType "swiss"]
[EventCountry "POL"]
[SourceTitle "playchess.com"]
[Source "ChessBase"]
[SourceQuality "1"]
[TimeControl "40/5400+30:1800+30"]

1. d4 {[%emt 0:00:02]} d5 {[%emt 0:00:02]} 2. c4 {[%emt 0:00:07]} c6 {[%emt 0:00:01]} 3. Nf3 {[%emt 0:00:09]} Nf6 {[%emt 0:00:03]} 4. e3 {[%emt 0:00:04]} e6 {[%emt 0:00:07]} 5. Nc3 {[%emt 0:00:11]} Be7 {[%emt 0:03:09]} 6. Bd3 {[%emt 0:01:11]} dxc4 {[%emt 0:00:28]} 7. Bxc4 {[%emt 0:00:07]} b5 {[%emt 0:00:10]} 8. Be2 {[%emt 0:00:42]} Bb7 {[%emt 0:00:04]} 9. O-O {[%emt 0:00:34]} Nbd7 {[%emt 0:00:47]} 10. a3 {[%emt 0:03:14]} a5 {[%emt 0:07:49]} 11. Qc2 {[%emt 0:02:50]} O-O {[%emt 0:03:24]} 12. b3 {[%emt 0:03:14]} Rc8 {[%emt 0:14:06]} 13. Ne4 {[%emt 0:05:16]} c5 {[%emt 0:10:37]} 14. Nxc5 {[%emt 0:05:21]} Nxc5 {[%emt 0:02:01]} 15. dxc5 {[%emt 0:00:06]} Rxc5 {[%emt 0:03:09]} 16. Qd2 {[%emt 0:02:47]} Qc7 {[%emt 0:01:38]} 17. Bb2 {[%emt 0:12:00]} Rc2 {[%emt 0:00:39]} 18. Rac1 {[%emt 0:02:43]} Rxd2 {[%emt 0:06:57]} 19. Rxc7 {[%emt 0:00:10]} Bxf3 {[%emt 0:04:59]} 20. Bxf3 {[%emt 0:03:09]} Rxb2 {[%emt 0:02:08]} 21. Rxe7 {[%emt 0:00:05]} Rxb3 {[%emt 0:00:04]} 22. Rb7 {[%emt 0:00:24]} Rc8 {[%emt 0:09:14]} 23. a4 {[%emt 0:10:36]} bxa4 {[%emt 0:08:06]} 24. Ra7 {[%emt 0:00:39]} Ra3 {[%emt 0:03:27]} 25. Rxa5 {[%emt 0:00:29]} g6 {[%emt 0:01:41]} 26. Rb1 {[%emt 0:05:26]} Ra2 {[%emt 0:01:39]} 27. Bd1 {[%emt 0:03:42]} a3 {[%emt 0:00:48]} 28. h3 {[%emt 0:04:31]} Rd8 {[%emt 0:00:39]} 29. f4 {[%emt 0:00:10]} Rdd2 30. Bf3 Nd5 {[%emt 0:01:34]} 31. Bxd5 {[%emt 0:01:15]} exd5 {[%emt 0:00:00]} 32. g4 {[%emt 0:01:03]} Rg2+ 33. Kh1 Rh2+ {[%emt 0:00:12]} 34. Kg1 {[%emt 0:00:39]} Rag2+ {[%emt 0:00:00]} 35. Kf1 {[%emt 0:01:04]} Rb2 {[%emt 0:00:25]} 36. Kg1 {[%emt 0:00:12]} a2 {[%emt 0:01:25]} 37. Ra1 {[%emt 0:01:04]} Rhc2 {[%emt 0:00:08]} 38. Rxd5 {[%emt 0:00:06]} Rb1+ {[%emt 0:00:04]} 39. Rd1 {[%emt 0:00:00]} Rxa1 {[%emt 0:00:00]} 40. Rxa1 Rb2 0-1

[Event "Najdorf Memorial-B 2022"]
[Site "Warsaw"]
[Date "2022.07.16"]
[Round "8.1"]
[White "Michalowski, Patryk"]
[Black "Bubien, Antoni"]
[Result "1-0"]
[ECO "B87"]
[WhiteElo "1726"]
[BlackElo "1472"]
[Annotator "NA"]
[PlyCount "67"]
[EventDate "2022.07.09"]
[EventType "swiss"]
[EventCountry "POL"]
[SourceTitle "playchess.com"]
[Source "ChessBase"]
[SourceQuality "1"]
[TimeControl "40/5400+30:1800+30"]

1. e4 {[%emt 0:00:03]} c5 {[%emt 0:00:04]} 2. Nf3 {[%emt 0:00:04]} d6 {[%emt 0:00:00]} 3. d4 cxd4 {[%emt 0:00:09]} 4. Nxd4 {[%emt 0:00:10]} Nf6 {[%emt 0:00:05]} 5. Nc3 {[%emt 0:00:05]} a6 {[%emt 0:00:03]} 6. Bc4 {[%emt 0:00:06]} e6 {[%emt 0:00:04]} 7. Bb3 {[%emt 0:00:06]} b5 {[%emt 0:00:06]} 8. Bg5 {[%emt 0:03:27]} Be7 {[%emt 0:00:14]} 9. f4 {[%emt 0:00:14]} b4 {[%emt 0:01:53]} 10. Bxf6 {[%emt 0:04:17]} Bxf6 {[%emt 0:00:24]} 11. Nce2 {[%emt 0:01:01]} Bb7 {[%emt 0:03:01]} 12. Qd3 {[%emt 0:00:23]} Nd7 {[%emt 0:01:38]} 13. Bxe6 {[%emt 0:14:27]} fxe6 {[%emt 0:02:28]} 14. Nxe6 {[%emt 0:00:11]} Nc5 {[%emt 0:01:10]} 15. Nxc5 {[%emt 0:03:46]} dxc5 {[%emt 0:00:13]} 16. Qc4 {[%emt 0:00:14]} Bxb2 {[%emt 0:11:40]} 17. Rd1 {[%emt 0:01:24]} Qe7 {[%emt 0:00:34]} 18. e5 {[%emt 0:13:05]} Bxg2 {[%emt 0:07:20]} 19. Rg1 {[%emt 0:00:07]} Bf3 {[%emt 0:01:55]} 20. Rd6 {[%emt 0:03:44]} Qh4+ {[%emt 0:11:07]} 21. Ng3 {[%emt 0:07:37]} Bd4 {[%emt 0:04:02]} 22. Qe6+ {[%emt 0:03:15]} Qe7 {[%emt 0:04:30]} 23. Qxe7+ {[%emt 0:00:08]} Kxe7 {[%emt 0:00:04]} 24. Nf5+ {[%emt 0:00:06]} Kf8 {[%emt 0:00:31]} 25. Rxg7 {[%emt 0:00:12]} Bc3+ {[%emt 0:07:09]} 26. Kf2 {[%emt 0:00:52]} Bh5 {[%emt 0:00:17]} 27. Rf6+ {[%emt 0:02:20]} Ke8 {[%emt 0:00:11]} 28. Re7+ {[%emt 0:00:07]} Kd8 {[%emt 0:00:20]} 29. Rd6+ {[%emt 0:00:06]} Kc8 {[%emt 0:00:25]} 30. Rdd7 {[%emt 0:00:04]} Bd4+ {[%emt 0:02:12]} 31. Kg3 {[%emt 0:04:07]} Rg8+ {[%emt 0:00:44]} 32. Kh4 {[%emt 0:00:10]} Bf3 {[%emt 0:00:49]} 33. Nd6+ {[%emt 0:00:06]} Kb8 {[%emt 0:00:16]} 34. Rb7+ {[%emt 0:00:08]} 1-0

[Event "Najdorf Memorial-B 2022"]
[Site "Warsaw"]
[Date "2022.07.16"]
[Round "8.2"]
[White "Nawalaniec, Adam"]
[Black "Krogulski, Maksymilian"]
[Result "1/2-1/2"]
[ECO "B30"]
[WhiteElo "1768"]
[BlackElo "1584"]
[Annotator "NA"]
[PlyCount "106"]
[EventDate "2022.07.09"]
[EventType "swiss"]
[EventCountry "POL"]
[SourceTitle "playchess.com"]
[Source "ChessBase"]
[SourceQuality "1"]
[TimeControl "40/5400+30:1800+30"]

1. e4 {[%emt 0:00:02]} c5 {[%emt 0:02:32]} 2. Nf3 {[%emt 0:00:18]} Nc6 {[%emt 0:00:01]} 3. d3 {[%emt 0:00:11]} g6 {[%emt 0:00:29]} 4. g3 {[%emt 0:00:15]} Bg7 {[%emt 0:00:06]} 5. Bg2 {[%emt 0:00:21]} d6 {[%emt 0:00:33]} 6. O-O {[%emt 0:00:21]} Nf6 {[%emt 0:00:12]} 7. c3 {[%emt 0:01:46]} O-O {[%emt 0:01:40]} 8. Re1 {[%emt 0:03:39]} Bg4 {[%emt 0:02:51]} 9. h3 {[%emt 0:02:26]} Bd7 {[%emt 0:00:17]} 10. d4 {[%emt 0:05:33]} cxd4 {[%emt 0:02:20]} 11. cxd4 {[%emt 0:00:14]} Qc8 {[%emt 0:00:38]} 12. Kh2 {[%emt 0:02:36]} d5 {[%emt 0:03:39]} 13. e5 {[%emt 0:03:14]} Ne4 {[%emt 0:03:32]} 14. Nc3 {[%emt 0:08:30]} Nxc3 {[%emt 0:05:23]} 15. bxc3 {[%emt 0:00:03]} Na5 {[%emt 0:00:59]} 16. Ba3 {[%emt 0:02:43]} Re8 {[%emt 0:01:30]} 17. Bb4 {[%emt 0:19:21]} Nc4 {[%emt 0:01:02]} 18. Ng5 {[%emt 0:02:01]} h6 {[%emt 0:01:41]} 19. Bxd5 {[%emt 0:12:13]} hxg5 {[%emt 0:01:00]} 20. Qf3 {[%emt 0:00:14]} e6 {[%emt 0:03:20]} 21. Bxb7 {[%emt 0:01:07]} Qb8 {[%emt 0:01:03]} 22. Bxa8 {[%emt 0:10:05]} Qxa8 {[%emt 0:00:32]} 23. Qxa8 {[%emt 0:01:27]} Rxa8 {[%emt 0:00:01]} 24. Be7 {[%emt 0:00:35]} Nd2 {[%emt 0:01:49]} 25. Red1 {[%emt 0:01:46]} Nf3+ {[%emt 0:00:35]} 26. Kg2 {[%emt 0:00:02]} Bc6 {[%emt 0:01:03]} 27. d5 {[%emt 0:00:01]} Bxd5 {[%emt 0:00:36]} 28. Rxd5 {[%emt 0:00:02]} exd5 {[%emt 0:00:01]} 29. Kxf3 {[%emt 0:00:14]} Bxe5 {[%emt 0:00:15]} 30. Rd1 {[%emt 0:00:41]} Rc8 {[%emt 0:05:15]} 31. Rxd5 {[%emt 0:00:45]} Rxc3+ {[%emt 0:03:03]} 32. Kg2 {[%emt 0:01:45]} f6 {[%emt 0:02:29]} 33. Bd6 {[%emt 0:01:42]} Bxd6 {[%emt 0:00:57]} 34. Rxd6 {[%emt 0:00:01]} Ra3 {[%emt 0:00:17]} 35. Rxf6 {[%emt 0:00:32]} Kg7 {[%emt 0:00:05]} 36. Rc6 {[%emt 0:01:10]} Rxa2 {[%emt 0:00:42]} 37. Rc7+ {[%emt 0:01:34]} Kh6 {[%emt 0:00:32]} 38. Rb7 {[%emt 0:03:11]} a5 {[%emt 0:02:32]} 39. Ra7 {[%emt 0:00:26]} a4 {[%emt 0:01:30]} 40. g4 {[%emt 0:00:00]} Ra3 {[%emt 0:00:00]} 41. Ra5 {[%emt 0:01:00]} Ra1 {[%emt 0:06:35]} 42. f3 {[%emt 0:02:24]} a3 {[%emt 0:01:54]} 43. Ra7 {[%emt 0:02:38]} a2 {[%emt 0:04:51]} 44. Kh2 {[%emt 0:03:12]} Rf1 {[%emt 0:00:46]} 45. Rxa2 {[%emt 0:00:02]} Rxf3 {[%emt 0:00:02]} 46. Kg2 {[%emt 0:00:59]} Rb3 {[%emt 0:00:01]} 47. Rf2 {[%emt 0:01:48]} Kg7 {[%emt 0:00:28]} 48. Rc2 {[%emt 0:01:10]} Ra3 {[%emt 0:00:26]} 49. Rc7+ {[%emt 0:00:28]} Kf6 {[%emt 0:00:20]} 50. Rc6+ {[%emt 0:02:07]} Ke5 {[%emt 0:02:04]} 51. Rxg6 {[%emt 0:02:13]} Ra2+ {[%emt 0:00:23]} 52. Kf3 {[%emt 0:02:46]} Ra3+ {[%emt 0:03:13]} 53. Ke2 {[%emt 0:00:21]} Rxh3 {[%emt 0:04:08]} 1/2-1/2

[Event "Najdorf Memorial-B 2022"]
[Site "Warsaw"]
[Date "2022.07.16"]
[Round "8.3"]
[White "Yasmo, Daniil"]
[Black "Tsiapko, Andrii"]
[Result "1-0"]
[ECO "D53"]
[WhiteElo "1680"]
[BlackElo "1538"]
[Annotator "NA"]
[PlyCount "127"]
[EventDate "2022.07.09"]
[EventType "swiss"]
[EventCountry "POL"]
[SourceTitle "playchess.com"]
[Source "ChessBase"]
[SourceQuality "1"]
[TimeControl "40/5400+30:1800+30"]

1. d4 {[%emt 0:00:03]} Nf6 {[%emt 0:03:45]} 2. c4 {[%emt 0:00:12]} e6 {[%emt 0:00:28]} 3. Nc3 {[%emt 0:00:05]} d5 {[%emt 0:00:21]} 4. Bg5 {[%emt 0:00:05]} Be7 {[%emt 0:00:39]} 5. cxd5 {[%emt 0:00:11]} exd5 {[%emt 0:03:35]} 6. e3 {[%emt 0:00:42]} c6 {[%emt 0:01:17]} 7. Bd3 {[%emt 0:00:24]} Nbd7 {[%emt 0:01:12]} 8. Nf3 {[%emt 0:01:05]} O-O {[%emt 0:01:04]} 9. O-O {[%emt 0:00:51]} Re8 {[%emt 0:01:21]} 10. Qc2 {[%emt 0:00:46]} Nf8 {[%emt 0:06:43]} 11. Ne5 {[%emt 0:01:16]} N6d7 {[%emt 0:04:03]} 12. Bf4 {[%emt 0:02:55]} Nxe5 {[%emt 0:02:10]} 13. dxe5 {[%emt 0:00:49]} Ng6 {[%emt 0:09:29]} 14. Bg3 {[%emt 0:01:05]} Nf8 {[%emt 0:21:31]} 15. e4 {[%emt 0:03:24]} dxe4 {[%emt 0:02:47]} 16. Nxe4 {[%emt 0:00:27]} Bf5 {[%emt 0:02:57]} 17. Rad1 {[%emt 0:02:38]} Qb6 {[%emt 0:04:55]} 18. Rfe1 {[%emt 0:02:53]} Bxe4 {[%emt 0:04:32]} 19. Bxe4 {[%emt 0:00:31]} Bb4 {[%emt 0:00:46]} 20. Re2 {[%emt 0:01:37]} Rad8 {[%emt 0:01:55]} 21. a3 {[%emt 0:04:09]} Rxd1+ {[%emt 0:02:20]} 22. Qxd1 {[%emt 0:00:01]} Rd8 {[%emt 0:00:38]} 23. Qc2 {[%emt 0:05:39]} Qd4 {[%emt 0:05:01]} 24. h3 {[%emt 0:00:35]} Ba5 {[%emt 0:02:29]} 25. Kh2 {[%emt 0:02:00]} Bb6 {[%emt 0:03:40]} 26. Bf4 {[%emt 0:03:48]} Qd1 {[%emt 0:06:41]} 27. Qxd1 {[%emt 0:01:58]} Rxd1 {[%emt 0:00:02]} 28. Bc2 {[%emt 0:04:25]} Rd5 {[%emt 0:01:32]} 29. Bd2 {[%emt 0:07:45]} Bd4 {[%emt 0:02:37]} 30. Bc3 {[%emt 0:00:56]} Bxc3 {[%emt 0:00:29]} 31. bxc3 {[%emt 0:00:01]} Ne6 {[%emt 0:00:56]} 32. Kg3 {[%emt 0:01:38]} Ra5 {[%emt 0:00:31]} 33. a4 {[%emt 0:00:56]} Kf8 {[%emt 0:01:56]} 34. Re4 {[%emt 0:01:51]} Rd5 {[%emt 0:01:43]} 35. Rb4 {[%emt 0:03:09]} Nc5 {[%emt 0:00:39]} 36. f4 {[%emt 0:01:07]} Rd2 {[%emt 0:00:28]} 37. Bb1 {[%emt 0:00:51]} a5 {[%emt 0:01:03]} 38. Rc4 {[%emt 0:00:46]} b6 {[%emt 0:00:26]} 39. Kf3 {[%emt 0:02:40]} Rb2 {[%emt 0:00:16]} 40. Be4 {[%emt 0:00:00]} Nxe4 {[%emt 0:00:00]} 41. Kxe4 {[%emt 0:01:44]} c5 {[%emt 0:04:34]} 42. g4 {[%emt 0:04:26]} Ke7 {[%emt 0:02:14]} 43. h4 {[%emt 0:00:54]} g6 {[%emt 0:04:48]} 44. f5 {[%emt 0:04:17]} Kd7 {[%emt 0:02:21]} 45. Kf4 {[%emt 0:03:06]} h6 {[%emt 0:01:31]} 46. e6+ {[%emt 0:01:30]} Ke7 {[%emt 0:08:33]} 47. Re4 {[%emt 0:01:19]} gxf5 {[%emt 0:02:45]} 48. gxf5 {[%emt 0:01:45]} Rf2+ {[%emt 0:02:24]} 49. Kg4 {[%emt 0:00:23]} f6 {[%emt 0:00:36]} 50. Rf4 {[%emt 0:01:26]} h5+ {[%emt 0:00:34]} 51. Kg3 {[%emt 0:00:04]} Rc2 {[%emt 0:00:36]} 52. Rf3 {[%emt 0:00:12]} Ra2 {[%emt 0:00:32]} 53. Rd3 {[%emt 0:02:37]} Rxa4 {[%emt 0:04:29]} 54. Rd7+ {[%emt 0:00:01]} Ke8 {[%emt 0:00:54]} 55. Rf7 {[%emt 0:00:28]} Rg4+ {[%emt 0:00:43]} 56. Kf3 {[%emt 0:02:40]} a4 {[%emt 0:00:28]} 57. Rxf6 {[%emt 0:00:26]} a3 {[%emt 0:00:37]} 58. Rh6 {[%emt 0:00:43]} a2 {[%emt 0:00:55]} 59. f6 {[%emt 0:00:45]} Rg8 {[%emt 0:00:55]} 60. f7+ {[%emt 0:00:09]} Kf8 {[%emt 0:00:11]} 61. fxg8=Q+ {[%emt 0:00:22]} Kxg8 {[%emt 0:00:19]} 62. Rg6+ {[%emt 0:00:53]} Kf8 {[%emt 0:00:18]} 63. Rg1 {[%emt 0:00:22]} b5 {[%emt 0:00:06]} 64. Ra1 1-0

[Event "Najdorf Memorial-B 2022"]
[Site "Warsaw"]
[Date "2022.07.16"]
[Round "8.4"]
[White "Piddubna, Bozhena"]
[Black "Wieckowski, Michal"]
[Result "0-1"]
[ECO "A88"]
[WhiteElo "1534"]
[BlackElo "1669"]
[Annotator "NA"]
[PlyCount "118"]
[EventDate "2022.07.09"]
[EventType "swiss"]
[EventCountry "POL"]
[SourceTitle "playchess.com"]
[Source "ChessBase"]
[SourceQuality "1"]
[TimeControl "40/5400+30:1800+30"]

1. c4 {[%emt 0:01:51]} g6 {[%emt 0:00:09]} 2. Nc3 {[%emt 0:00:32]} Bg7 {[%emt 0:00:14]} 3. d4 {[%emt 0:00:12]} f5 {[%emt 0:00:55]} 4. Nf3 {[%emt 0:05:29]} Nf6 {[%emt 0:00:02]} 5. g3 {[%emt 0:01:35]} O-O {[%emt 0:00:04]} 6. Bg2 {[%emt 0:00:22]} d6 {[%emt 0:00:14]} 7. O-O {[%emt 0:01:59]} c6 {[%emt 0:01:16]} 8. Qb3 {[%emt 0:02:17]} Na6 {[%emt 0:01:14]} 9. Rd1 {[%emt 0:04:56]} Qe8 {[%emt 0:02:13]} 10. d5 {[%emt 0:14:11]} Nc5 {[%emt 0:01:45]} 11. Qc2 {[%emt 0:01:06]} cxd5 {[%emt 0:09:47]} 12. cxd5 {[%emt 0:01:43]} Bd7 {[%emt 0:00:45]} 13. Nd4 {[%emt 0:03:28]} Rc8 {[%emt 0:02:15]} 14. Qd2 {[%emt 0:06:16]} Qf7 {[%emt 0:09:45]} 15. f4 {[%emt 0:18:10]} a6 {[%emt 0:10:06]} 16. Qe3 {[%emt 0:08:25]} b5 {[%emt 0:26:07]} 17. b4 {[%emt 0:07:37]} Nce4 {[%emt 0:04:07]} 18. Nxe4 {[%emt 0:01:52]} Nxd5 {[%emt 0:10:26]} 19. Qb3 {[%emt 0:03:20]} fxe4 {[%emt 0:00:10]} 20. Bb2 {[%emt 0:02:24]} Nf6 {[%emt 0:01:48]} 21. Qa3 {[%emt 0:02:11]} Ra8 {[%emt 0:04:29]} 22. Rac1 {[%emt 0:00:42]} Qe8 {[%emt 0:03:16]} 23. Qb3+ {[%emt 0:03:05]} Qf7 {[%emt 0:05:54]} 24. Rc7 {[%emt 0:03:34]} Rfc8 {[%emt 0:00:53]} 25. Qxf7+ {[%emt 0:03:39]} Kxf7 {[%emt 0:00:01]} 26. Bxe4 {[%emt 0:00:17]} Nxe4 {[%emt 0:01:45]} 27. Rxd7 {[%emt 0:00:02]} Nc3 {[%emt 0:02:29]} 28. Bxc3 {[%emt 0:00:59]} Rxc3 {[%emt 0:00:01]} 29. Nf3 {[%emt 0:00:43]} Ke8 {[%emt 0:00:18]} 30. Rb7 {[%emt 0:00:08]} Bf6 {[%emt 0:00:07]} 31. Nd4 {[%emt 0:02:12]} Kd8 {[%emt 0:02:22]} 32. Ne6+ {[%emt 0:00:01]} Kc8 {[%emt 0:00:06]} 33. Rb6 {[%emt 0:00:22]} Kd7 {[%emt 0:00:18]} 34. Nc5+ {[%emt 0:00:24]} Kc7 {[%emt 0:00:58]} 35. Rxa6 {[%emt 0:01:23]} Rxa6 {[%emt 0:00:20]} 36. Nxa6+ Kb7 {[%emt 0:00:09]} 37. Nc5+ {[%emt 0:00:40]} dxc5 {[%emt 0:00:04]} 38. bxc5 {[%emt 0:00:04]} Rxc5 {[%emt 0:00:16]} 39. e4 {[%emt 0:00:06]} Kc7 {[%emt 0:00:51]} 40. e5 {[%emt 0:00:00]} Bg7 {[%emt 0:00:00]} 41. Rd2 {[%emt 0:03:04]} g5 {[%emt 0:01:39]} 42. Kf2 {[%emt 0:01:03]} gxf4 {[%emt 0:00:18]} 43. gxf4 {[%emt 0:00:12]} Bh6 {[%emt 0:00:25]} 44. Kg3 {[%emt 0:01:27]} Rc4 {[%emt 0:00:35]} 45. Rf2 {[%emt 0:00:09]} Re4 {[%emt 0:01:22]} 46. Kg4 {[%emt 0:00:27]} e6 {[%emt 0:00:07]} 47. Kg3 {[%emt 0:01:05]} Kb6 {[%emt 0:00:05]} 48. f5 {[%emt 0:00:35]} Be3 {[%emt 0:06:23]} 49. Rf3 {[%emt 0:01:06]} Rxe5 {[%emt 0:03:08]} 50. f6 {[%emt 0:02:04]} Bc5 {[%emt 0:00:35]} 51. Kg4 {[%emt 0:01:21]} Bf8 {[%emt 0:02:29]} 52. h4 {[%emt 0:04:53]} h5+ {[%emt 0:01:18]} 53. Kg3 {[%emt 0:00:14]} b4 {[%emt 0:00:34]} 54. f7 {[%emt 0:02:45]} Kc7 {[%emt 0:03:16]} 55. Rf6 {[%emt 0:04:20]} Kd7 {[%emt 0:01:06]} 56. Kf4 {[%emt 0:00:21]} Ra5 {[%emt 0:00:08]} 57. Rg6 {[%emt 0:00:21]} Ke7 {[%emt 0:01:22]} 58. Ke4 {[%emt 0:00:50]} Kxf7 {[%emt 0:00:33]} 59. Rg2 {[%emt 0:00:11]} Rd5 {[%emt 0:00:36]} 0-1

[Event "Najdorf Memorial-B 2022"]
[Site "Warsaw"]
[Date "2022.07.16"]
[Round "8.5"]
[White "Napieralski, Lucjan"]
[Black "Carrieri, Maurizio"]
[Result "0-1"]
[ECO "B33"]
[WhiteElo "1414"]
[BlackElo "1666"]
[Annotator "NA"]
[PlyCount "98"]
[EventDate "2022.07.09"]
[EventType "swiss"]
[EventCountry "POL"]
[SourceTitle "playchess.com"]
[Source "ChessBase"]
[SourceQuality "1"]
[TimeControl "40/5400+30:1800+30"]

1. e4 {[%emt 0:00:02]} c5 {[%emt 0:00:08]} 2. Nf3 {[%emt 0:00:05]} Nc6 {[%emt 0:00:04]} 3. d4 {[%emt 0:00:12]} cxd4 {[%emt 0:00:04]} 4. Nxd4 {[%emt 0:00:07]} Nf6 {[%emt 0:00:03]} 5. Nxc6 {[%emt 0:03:36]} bxc6 {[%emt 0:03:10]} 6. Bd3 {[%emt 0:00:09]} e5 {[%emt 0:03:35]} 7. c4 {[%emt 0:02:41]} Bb4+ {[%emt 0:03:28]} 8. Nd2 {[%emt 0:01:18]} a5 {[%emt 0:04:07]} 9. O-O {[%emt 0:02:16]} O-O {[%emt 0:03:54]} 10. a3 {[%emt 0:00:22]} Bc5 {[%emt 0:03:30]} 11. b3 {[%emt 0:02:20]} Bd4 {[%emt 0:06:35]} 12. Rb1 {[%emt 0:00:08]} d5 {[%emt 0:04:25]} 13. Qc2 {[%emt 0:10:28]} Bg4 {[%emt 0:05:10]} 14. Bb2 {[%emt 0:10:17]} Bxb2 {[%emt 0:04:49]} 15. Rxb2 {[%emt 0:00:32]} d4 {[%emt 0:00:09]} 16. f4 {[%emt 0:00:45]} Nh5 {[%emt 0:07:57]} 17. fxe5 {[%emt 0:08:06]} Qg5 {[%emt 0:04:36]} 18. Nf3 {[%emt 0:08:14]} Bxf3 {[%emt 0:03:19]} 19. Rxf3 {[%emt 0:00:40]} g6 {[%emt 0:00:17]} 20. c5 {[%emt 0:07:43]} Qxe5 {[%emt 0:01:45]} 21. Qc4 {[%emt 0:05:22]} Nf4 {[%emt 0:04:37]} 22. Rbf2 {[%emt 0:03:24]} Ne6 {[%emt 0:03:47]} 23. b4 {[%emt 0:03:29]} axb4 {[%emt 0:00:30]} 24. axb4 {[%emt 0:00:01]} Ra1+ {[%emt 0:05:02]} 25. Rf1 {[%emt 0:01:11]} Rxf1+ {[%emt 0:00:06]} 26. Rxf1 {[%emt 0:00:46]} Ra8 {[%emt 0:00:11]} 27. Qb3 {[%emt 0:02:34]} Kg7 {[%emt 0:04:39]} 28. Qb2 {[%emt 0:11:36]} Qg5 {[%emt 0:04:05]} 29. Qf2 {[%emt 0:07:09]} Qe3 {[%emt 0:05:30]} 30. Qxe3 {[%emt 0:00:08]} dxe3 {[%emt 0:00:05]} 31. e5 {[%emt 0:01:43]} Ra2 {[%emt 0:01:57]} 32. Re1 {[%emt 0:05:22]} Ra3 {[%emt 0:05:44]} 33. Be4 {[%emt 0:02:00]} Nd4 {[%emt 0:00:45]} 34. Rd1 {[%emt 0:01:51]} Ne2+ {[%emt 0:00:16]} 35. Kf1 {[%emt 0:00:51]} Nc3 {[%emt 0:00:11]} 36. Re1 {[%emt 0:00:31]} Nxe4 {[%emt 0:00:17]} 37. Ke2 {[%emt 0:00:05]} Kf8 {[%emt 0:01:22]} 38. Kf3 {[%emt 0:00:14]} Nd2+ {[%emt 0:01:57]} 39. Kf4 {[%emt 0:00:16]} Nc4 {[%emt 0:01:44]} 40. Ke4 {[%emt 0:00:00]} Ke7 {[%emt 0:00:00]} 41. Kd4 {[%emt 0:00:28]} Nd2 {[%emt 0:03:28]} 42. Rxe3 {[%emt 0:00:34]} Rxe3 {[%emt 0:00:54]} 43. Kxe3 {[%emt 0:00:05]} Nf1+ {[%emt 0:01:45]} 44. Kd4 {[%emt 0:01:30]} Nxh2 {[%emt 0:03:27]} 45. b5 {[%emt 0:00:08]} cxb5 {[%emt 0:00:06]} 46. c6 {[%emt 0:00:04]} Ng4 {[%emt 0:00:27]} 47. Kc5 {[%emt 0:00:32]} Nxe5 {[%emt 0:00:29]} 48. c7 {[%emt 0:00:09]} Kd7 {[%emt 0:00:30]} 49. Kb6 {[%emt 0:00:01]} Kc8 {[%emt 0:00:17]} 0-1

[Event "Najdorf Memorial-B 2022"]
[Site "Warsaw"]
[Date "2022.07.16"]
[Round "8.6"]
[White "Prokopiuk, Jakub"]
[Black "Slusarczyk, Anna"]
[Result "1/2-1/2"]
[ECO "B28"]
[WhiteElo "1481"]
[BlackElo "1637"]
[Annotator "NA"]
[PlyCount "113"]
[EventDate "2022.07.09"]
[EventType "swiss"]
[EventCountry "POL"]
[SourceTitle "playchess.com"]
[Source "ChessBase"]
[SourceQuality "1"]
[TimeControl "40/5400+30:1800+30"]

1. e4 {[%emt 0:00:02]} c5 {[%emt 0:00:03]} 2. Nf3 {[%emt 0:00:07]} a6 {[%emt 0:00:10]} 3. d4 {[%emt 0:00:22]} cxd4 {[%emt 0:00:04]} 4. Nxd4 {[%emt 0:00:02]} Nf6 {[%emt 0:00:07]} 5. Nc3 {[%emt 0:00:12]} e5 6. Nb3 {[%emt 0:00:47]} Bb4 {[%emt 0:00:11]} 7. Bg5 {[%emt 0:16:33]} Bxc3+ {[%emt 0:15:53]} 8. bxc3 {[%emt 0:01:30]} d6 {[%emt 0:01:49]} 9. Be2 {[%emt 0:04:15]} h6 {[%emt 0:07:00]} 10. Bxf6 {[%emt 0:01:40]} Qxf6 {[%emt 0:00:13]} 11. O-O {[%emt 0:00:40]} O-O {[%emt 0:00:06]} 12. Na5 {[%emt 0:02:38]} Rd8 {[%emt 0:22:55]} 13. Qb1 {[%emt 0:04:16]} Nd7 {[%emt 0:20:08]} 14. Nc4 {[%emt 0:04:41]} b5 {[%emt 0:10:07]} 15. Ne3 {[%emt 0:02:58]} Bb7 {[%emt 0:03:50]} 16. f3 {[%emt 0:01:20]} d5 {[%emt 0:04:52]} 17. Nxd5 {[%emt 0:15:20]} Bxd5 {[%emt 0:00:14]} 18. exd5 {[%emt 0:00:22]} Qb6+ {[%emt 0:00:16]} 19. Kh1 {[%emt 0:00:19]} Qc5 {[%emt 0:00:11]} 20. Qb4 {[%emt 0:03:28]} Rac8 {[%emt 0:08:33]} 21. a4 {[%emt 0:04:26]} Qxc3 {[%emt 0:03:18]} 22. Qxc3 {[%emt 0:00:33]} Rxc3 {[%emt 0:00:06]} 23. axb5 {[%emt 0:00:11]} Rxc2 {[%emt 0:00:08]} 24. Bd3 {[%emt 0:00:29]} Rc3 {[%emt 0:00:13]} 25. Be2 {[%emt 0:00:05]} axb5 26. Bxb5 {[%emt 0:02:20]} Nf6 {[%emt 0:01:58]} 27. h3 {[%emt 0:04:30]} Rxd5 {[%emt 0:00:22]} 28. Ra8+ {[%emt 0:01:26]} Kh7 {[%emt 0:00:08]} 29. Be8 {[%emt 0:01:03]} Nxe8 {[%emt 0:01:19]} 30. Rxe8 {[%emt 0:00:09]} Rc2 {[%emt 0:00:08]} 31. Kh2 {[%emt 0:02:41]} Rdd2 {[%emt 0:00:34]} 32. Rg1 {[%emt 0:00:08]} f6 {[%emt 0:00:39]} 33. Kg3 {[%emt 0:00:21]} Kg6 {[%emt 0:00:30]} 34. Re7 {[%emt 0:00:10]} Re2 {[%emt 0:00:31]} 35. Kh2 {[%emt 0:02:42]} f5 {[%emt 0:00:30]} 36. Re6+ {[%emt 0:00:40]} Kg5 {[%emt 0:00:43]} 37. Kg3 {[%emt 0:03:40]} f4+ {[%emt 0:00:30]} 38. Kh2 {[%emt 0:00:12]} Kf5 39. Re8 {[%emt 0:00:35]} Kf6 {[%emt 0:01:03]} 40. Rf8+ {[%emt 0:00:00]} Ke7 {[%emt 0:00:00]} 41. Ra8 {[%emt 0:00:38]} e4 {[%emt 0:10:07]} 42. Ra7+ {[%emt 0:00:48]} Kf6 {[%emt 0:00:20]} 43. Ra6+ {[%emt 0:00:07]} Kg5 {[%emt 0:00:42]} 44. Ra5+ {[%emt 0:00:29]} Kg6 {[%emt 0:04:12]} 45. fxe4 {[%emt 0:02:52]} Rxe4 {[%emt 0:01:21]} 46. Ra6+ {[%emt 0:01:29]} Kh7 {[%emt 0:04:12]} 47. Ra3 {[%emt 0:01:29]} Ree2 {[%emt 0:02:04]} 48. Rb3 {[%emt 0:01:01]} Rf2 {[%emt 0:00:05]} 49. Kh1 {[%emt 0:01:50]} Rce2 {[%emt 0:00:07]} 50. Ra3 {[%emt 0:00:55]} Kg6 {[%emt 0:03:07]} 51. Ra6+ {[%emt 0:09:28]} Kh5 {[%emt 0:03:29]} 52. Ra5+ {[%emt 0:00:35]} g5 {[%emt 0:00:30]} 53. Ra3 {[%emt 0:00:20]} g4 {[%emt 0:00:59]} 54. hxg4+ {[%emt 0:01:18]} Kxg4 {[%emt 0:00:04]} 55. Ra4 {[%emt 0:02:55]} h5 {[%emt 0:02:31]} 56. Ra3 {[%emt 0:00:53]} Rd2 {[%emt 0:01:35]} 57. Rb3 1/2-1/2